bitfinex/quotes_SOLUSD_20220211
["timestamp","ask_amount","ask_price","bid_price","bid_amount"]
[1644604256527,32.6663,105.23,105.12,2.38366791]
[1644604256729,32.6663,105.23,105.12,0.25]
[1644604256929,32.6663,105.23,105.13,2.38366791]
[1644604257128,18.402,105.23,105.13,2.38366791]
[1644604257329,19.0153,105.25,105.13,2.63366791]
[1644604257528,4.753,105.25,105.13,2.63366791]
[1644604257832,4.753,105.25,105.14,44.21721484]
[1644604258227,4.753,105.25,105.15,2.38366791]
[1644604258429,4.753,105.25,105.16,42.09685156]
[1644604258630,4.753,105.25,105.16,48.09685156]
[1644604258828,14.2632,105.24,105.17,2.38366791]
[1644604259029,4.752,105.23,105.17,2.38366791]
[1644604259230,4.752,105.23,105.16,42.09685156]
[1644604259728,4.753,105.25,105.18,36.59269711]
[1644604259928,14.2623,105.25,105.18,36.59269711]
[1644604260131,14.2623,105.25,105.15,8.38366791]
[1644604260332,4.752,105.24,105.15,8.38366791]
[1644604260535,4.752,105.24,105.16,2.38366791]
[1644604260730,4.752,105.24,105.17,6.0]
[1644604260934,4.752,105.27,105.17,6.0]
[1644604261140,4.752,105.29,105.18,44.51566195]
[1644604261338,18.4,105.32,105.19,6.024]
[1644604261539,18.4,105.32,105.2,42.1162049]
[1644604261739,18.4,105.32,105.2,44.74987281]
[1644604262138,14.2566,105.29,105.2,44.74987281]
[1644604262342,4.75,105.28,105.21,6.0]
[1644604262540,14.2566,105.29,105.22,44.61871556]
[1644604262740,14.2566,105.29,105.22,44.86871556]
[1644604263440,14.2566,105.29,105.22,101.60871556]
[1644604263846,32.6542,105.31,105.22,101.60871556]
[1644604264339,32.6542,105.31,105.21,6.0]
[1644604264539,32.6542,105.31,105.18,56.74]
[1644604264741,30.28786791,105.31,105.19,0.024]
[1644604265339,24.3512,105.3,105.19,0.024]
[1644604265540,14.2601,105.27,105.19,0.024]
[1644604265743,4.751,105.26,105.19,0.024]
[1644604265942,13.65,105.27,105.19,0.024]
[1644604266242,13.65,105.28,105.21,56.74]
[1644604266442,4.751,105.29,105.21,56.74]
[1644604266642,4.751,105.29,105.21,56.99]
[1644604266844,4.751,105.29,105.2,48.15997284]
[1644604267044,4.751,105.29,105.2,104.89997284]
[1644604267845,19.0069,105.29,105.2,104.89997284]
[1644604268647,14.2559,105.29,105.2,107.53364075]
[1644604268847,13.65,105.31,105.22,56.74]
[1644604269051,13.65,105.31,105.22,97.93866166]
[1644604269248,13.65,105.31,105.22,98.18866166]
[1644604269448,13.65,105.31,105.23,0.024]
[1644604270751,14.2545,105.3,105.23,0.024]
[1644604272053,4.749,105.29,105.23,0.024]
[1644604272253,14.2584,105.28,105.22,0.024]
[1644604272552,14.2584,105.28,105.2,0.024]
[1644604272752,14.2584,105.28,105.21,0.024]
[1644604272753,18.401,105.27,105.21,0.024]
[1644604273355,13.65,105.27,105.21,0.024]
[1644604273656,4.751,105.26,105.21,0.024]
[1644604273855,19.0112,105.26,105.21,0.024]
[1644604274255,19.0112,105.26,105.2,93.19461392]
[1644604275056,27.9077,105.28,105.2,56.74]
[1644604275259,27.9077,105.28,105.21,0.024]
[1644604276961,4.75,105.27,105.21,0.024]
[1644604277158,14.26,105.26,105.21,0.024]
[1644604277357,4.751,105.25,105.2,56.74]
[1644604280063,4.751,105.25,105.19,0.024]
[1644604280261,21.39516791,105.25,105.19,0.024]
[1644604280462,37.96816791,105.25,105.19,0.024]
[1644604280658,4.751,105.24,105.14,0.024]
[1644604280861,18.401,105.24,105.13,0.024]
[1644604281064,20.78466791,105.24,105.13,0.024]
[1644604281261,20.78466791,105.24,105.11,56.764]
[1644604281262,14.266,105.21,105.11,56.764]
[1644604281464,4.753,105.2,105.12,0.024]
[1644604281661,20.78666791,105.2,105.12,0.024]
[1644604281862,16.03366791,105.2,105.12,0.024]
[1644604282061,7.13666791,105.19,105.12,0.024]
[1644604282469,4.753,105.19,105.12,0.024]
[1644604282661,2.38366791,105.18,105.09,56.74]
[1644604283067,18.405,105.17,105.06,2.38366791]
[1644604283564,18.405,105.17,105.07,40.98865636]
[1644604283759,18.405,105.17,105.08,56.24]
[1644604283960,27.922,105.17,105.09,42.58721042]
[1644604284163,27.922,105.17,105.1,56.24]
[1644604284361,27.922,105.17,105.09,2.38366791]
[1644604284561,4.756,105.16,105.09,2.63366791]
[1644604284761,60.6954,105.18,105.1,2.38366791]
[1644604284961,13.65,105.18,105.1,2.38366791]
[1644604285161,13.65,105.2,105.12,56.74]
[1644604285360,13.65,105.2,105.13,103.74166689]
[1644604285561,13.65,105.2,105.13,106.1253348]
[1644604285764,13.65,105.2,105.13,49.6353348]
[1644604286362,13.65,105.2,105.13,106.3753348]
[1644604286563,93.9263,105.23,105.15,46.31448357]
[1644604286564,18.403,105.23,105.15,46.31448357]
[1644604286765,29.7073,105.25,105.16,6.0]
[1644604286962,4.752,105.24,105.17,91.89740173]
[1644604287364,4.752,105.24,105.17,92.14740173]
[1644604287565,4.752,105.24,105.17,91.89740173]
[1644604287765,4.752,105.24,105.17,56.99]
[1644604287965,19.0145,105.24,105.17,56.74]
[1644604288167,19.0145,105.24,105.17,56.99]
[1644604288766,19.0145,105.24,105.17,102.6631938]
[1644604289268,19.0145,105.24,105.17,56.99]
[1644604289865,19.0145,105.24,105.17,0.25]
[1644604290266,19.0145,105.24,105.16,48.12707298]
[1644604290465,19.0145,105.24,105.16,42.12707298]
[1644604290669,19.0145,105.24,105.16,98.86707298]
[1644604291168,19.0145,105.24,105.16,101.25074089]
[1644604291368,19.0145,105.24,105.14,56.74]
[1644604291569,13.65,105.23,105.12,24.2796]
[1644604291769,14.2681,105.2,105.12,24.5296]
[1644604291967,14.2681,105.2,105.12,0.25]
[1644604292368,14.2681,105.2,105.12,56.74]
[1644604292568,4.753,105.19,105.12,56.74]
[1644604292770,19.0225,105.19,105.09,2.38366791]
[1644604292971,68.1093,105.19,105.07,23.8222]
[1644604293267,2.38366791,105.18,105.08,6.0]
[1644604293473,4.756,105.17,105.08,62.74]
[1644604293668,4.755,105.18,105.09,96.37653597]
[1644604294068,4.755,105.18,105.09,93.99286806]
[1644604294789,14.2737,105.16,105.09,93.99286806]
[1644604294990,14.2737,105.16,105.1,2.38366791]
[1644604295191,14.2737,105.16,105.11,47.47219807]
[1644604295592,62.7368,105.19,105.11,49.85586598]
[1644604295793,62.7368,105.19,105.11,106.84586598]
[1644604295994,62.7368,105.19,105.13,48.53541297]
[1644604296193,14.2698,105.18,105.13,48.53541297]
[1644604296796,14.2698,105.18,105.13,50.91908088]
[1644604296997,14.2698,105.18,105.13,48.53541297]
[1644604297195,63.3552,105.19,105.13,105.52541297]
[1644604297395,68.1082,105.19,105.13,105.52541297]
[1644604297598,63.3552,105.19,105.1,2.38366791]
[1644604297894,68.1102,105.19,105.11,56.74]
[1644604298095,68.1102,105.19,105.07,39.85586791]
[1644604298294,68.1102,105.19,105.08,8.38366791]
[1644604298495,68.1102,105.19,105.09,45.28131277]
[1644604298695,68.1102,105.19,105.1,6.0]
[1644604298898,68.1102,105.19,105.1,0.024]
[1644604299097,68.1102,105.19,105.11,0.024]
[1644604299399,68.1102,105.19,105.11,36.99416791]
[1644604299697,68.1102,105.19,105.11,36.97016791]
[1644604299897,68.1102,105.19,105.12,0.024]
[1644604300198,84.14386791,105.19,105.11,0.024]
[1644604300396,84.14386791,105.19,105.09,0.024]
[1644604300597,84.14386791,105.19,105.06,0.024]
[1644604300797,184.9817203,105.18,105.06,0.024]
[1644604301007,189.036,105.17,105.05,0.024]
[1644604301199,14.2797,105.14,105.05,0.024]
[1644604301402,37.35813,105.13,105.05,0.024]
[1644604301599,21.674769,105.12,105.05,0.024]
[1644604301800,21.674769,105.12,105.05,2.40766791]
[1644604301801,26.432769,105.12,105.05,2.40766791]
[1644604302003,4.758,105.12,105.06,45.550528]
[1644604302203,13.65,105.13,105.06,0.024]
[1644604302399,14.2779,105.12,105.01,0.024]
[1644604302599,19.0359,105.12,105.01,0.024]
[1644604302799,19.0359,105.12,105.01,2.40766791]
[1644604303001,19.0359,105.12,105.02,2.38366791]
[1644604303200,14.2779,105.12,105.04,56.74]
[1644604303402,14.2779,105.12,105.05,37.61327731]
[1644604303601,14.2779,105.12,105.06,0.024]
[1644604304001,14.2779,105.12,105.06,2.40766791]
[1644604304204,14.2779,105.12,105.07,46.24215326]
[1644604304404,14.2779,105.12,105.07,0.024]
[1644604305004,13.65,105.13,105.07,0.024]
[1644604305203,32.6835,105.13,105.07,0.024]
[1644604305606,27.9265,105.13,105.07,0.024]
[1644604305805,4.757,105.12,105.04,0.024]
[1644604306007,90.1215,105.12,105.04,0.024]
[1644604306308,14.2818,105.1,105.03,0.024]
[1644604306507,13.65,105.09,105.05,0.024]
[1644604306705,13.65,105.09,105.0,39.43605786]
[1644604306706,16.03366791,105.09,105.0,39.46005786]
[1644604306909,18.409,105.09,105.01,0.024]
[1644604307107,4.759,105.11,105.01,0.024]
[1644604307309,18.409,105.11,105.01,0.024]
[1644604307710,18.409,105.11,105.02,56.74]
[1644604307909,13.65,105.14,105.04,56.74]
[1644604308108,13.65,105.15,105.06,56.74]
[1644604308306,13.65,105.15,105.07,48.11011545]
[1644604308507,4.757,105.14,105.08,0.024]
[1644604308706,19.0337,105.14,105.05,6.0]
[1644604308907,27.9267,105.14,105.06,0.024]
[1644604309308,4.757,105.13,105.07,0.024]
[1644604309508,13.65,105.12,105.07,0.024]
[1644604309708,16.03366791,105.12,105.01,40.59511788]
[1644604309908,14.2858,105.09,105.02,0.024]
[1644604310109,18.409,105.08,105.02,0.024]
[1644604310506,18.409,105.08,104.97,4.03014839]
[1644604310507,18.409,105.08,105.0,0.024]
[1644604310707,2.38366791,105.07,104.98,0.024]
[1644604310908,2.38366791,105.07,104.95,4.03014839]
[1644604310909,14.2949,105.05,104.95,0.024]
[1644604311107,14.2949,105.05,104.93,54.764]
[1644604311108,13.65,105.04,104.93,54.764]
[1644604311306,20.79466791,105.04,104.95,0.024]
[1644604311509,2.38366791,105.03,104.94,0.024]
[1644604311707,13.65,105.02,104.94,0.024]
[1644604313212,4.761,105.01,104.94,0.024]
[1644604313412,13.65,105.0,104.94,0.024]
[1644604313612,16.03366791,105.0,104.94,0.024]
[1644604313911,13.65,105.0,104.94,0.024]
[1644604314110,13.65,105.02,104.95,2.38366791]
[1644604314312,14.2911,105.04,104.96,106.42175197]
[1644604314514,14.2911,105.04,104.97,0.024]
[1644604314813,13.65,105.07,104.99,56.74]
[1644604315016,13.65,105.07,105.01,56.74]
[1644604315213,4.761,105.09,105.01,56.74]
[1644604315214,47.6181,105.1,105.02,48.79317653]
[1644604315412,13.65,105.09,105.03,0.024]
[1644604316012,13.65,105.09,105.02,0.024]
[1644604316013,4.759,105.08,105.02,0.024]
[1644604316214,13.65,105.08,105.0,0.024]
[1644604316414,13.65,105.08,104.96,6.024]
[1644604316415,18.411,105.08,104.96,6.024]
[1644604316615,2.38366791,105.07,104.97,48.18507344]
[1644604316817,4.76,105.06,104.99,39.28798411]
[1644604317014,4.76,105.06,105.0,0.024]
[1644604317214,35.08146791,105.06,105.0,0.024]
[1644604317415,30.32146791,105.06,105.0,0.024]
[1644604317617,4.76,105.05,104.97,0.024]
[1644604317824,13.65,105.04,104.95,0.024]
[1644604318021,4.761,105.03,104.94,6.024]
[1644604318216,13.65,105.04,104.95,0.024]
[1644604318415,4.761,105.03,104.95,0.024]
[1644604319017,4.761,105.03,104.93,6.024]
[1644604319217,13.65,105.04,104.94,43.11537529]
[1644604319417,13.65,105.04,104.95,0.024]
[1644604319617,13.65,105.04,104.96,34.59945639]
[1644604319816,13.65,105.04,104.96,34.84945639]
[1644604320016,13.65,105.04,104.97,0.024]
[1644604320618,27.9381,105.06,104.97,6.024]
[1644604320817,27.9381,105.06,104.98,40.84357117]
[1644604321040,27.9381,105.06,104.99,0.024]
[1644604321222,4.76,105.05,104.99,0.024]
[1644604321417,7.14366791,105.05,104.99,0.024]
[1644604321619,4.76,105.05,104.99,0.024]
[1644604322217,19.049,105.05,104.99,0.024]
[1644604322421,19.049,105.05,104.95,14.2897]
[1644604322422,35.08266791,105.05,104.95,20.3137]
[1644604322618,35.08266791,105.05,104.96,0.024]
[1644604323218,35.08266791,105.05,104.96,45.41494507]
[1644604323420,35.08266791,105.05,104.97,0.024]
[1644604323820,32.699,105.05,104.97,0.024]
[1644604324220,4.76,105.05,104.97,0.024]
[1644604324421,4.761,105.08,104.98,2.38366791]
[1644604324621,18.41,105.1,104.99,45.97105462]
[1644604324824,13.65,105.1,105.0,0.024]
[1644604325023,13.65,105.1,105.02,56.74]
[1644604325221,13.65,105.1,105.01,36.70460505]
[1644604325222,27.9318,105.1,105.03,0.024]
[1644604325425,4.759,105.09,105.02,0.024]
[1644604325622,4.759,105.09,105.0,0.024]
[1644604325822,2.38366791,105.08,104.97,0.024]
[1644604326024,2.38366791,105.08,104.95,8.67016194]
[1644604326025,13.65,105.07,104.96,56.74]
[1644604326224,13.65,105.07,104.97,109.05480357]
[1644604326424,4.76,105.06,104.97,109.07880357]
[1644604326625,16.03366791,105.07,104.98,0.024]
[1644604326826,30.32006791,105.07,104.98,0.024]
[1644604327024,4.76,105.06,104.98,0.024]
[1644604327224,20.79366791,105.07,104.98,0.024]
[1644604328029,18.41,105.07,104.98,0.024]
[1644604328226,32.6968,105.07,104.98,71.0508]
[1644604328428,27.9368,105.07,104.99,0.024]
[1644604328630,32.6968,105.07,104.99,0.024]
[1644604328825,35.08046791,105.07,104.99,0.024]
[1644604329026,35.08046791,105.07,104.97,0.024]
[1644604329227,44.80967634,105.07,104.94,2.69416194]
[1644604329529,44.80967634,105.07,104.95,0.024]
[1644604330226,44.80967634,105.07,104.93,2.69416194]
[1644604330427,93.76227634,105.07,104.94,2.67016194]
[1644604330631,93.76227634,105.07,104.95,48.46772859]
[1644604330830,93.76227634,105.07,104.96,0.024]
[1644604332834,14.13989253,105.06,104.94,2.67016194]
[1644604333034,170.63,105.01,104.92,2.91061094]
[1644604333236,170.63,105.01,104.89,4.50714839]
[1644604333237,18.413,105.0,104.89,3.14716194]
[1644604333434,77.0,104.98,104.86,2.67016194]
[1644604333636,77.0,104.98,104.84,14.86331868]
[1644604333637,18.415,104.97,104.84,2.67016194]
[1644604333835,18.415,104.97,104.81,4.03014839]
[1644604333836,170.63,104.95,104.85,42.15610647]
[1644604334035,18.416,104.94,104.85,37.65610647]
[1644604334235,18.416,104.94,104.82,2.67016194]
[1644604334236,20.79966791,104.94,104.82,2.67016194]
[1644604334437,35.10966791,104.94,104.82,2.67016194]
[1644604334635,2.38366791,104.93,104.82,2.67016194]
[1644604334855,18.417,104.92,104.81,56.74]
[1644604335039,18.417,104.92,104.81,62.74]
[1644604335238,13.65,104.92,104.81,2.67016194]
[1644604335439,4.768,104.91,104.81,5.05382985]
[1644604335638,14.3122,104.88,104.81,2.67016194]
[1644604335842,14.3122,104.88,104.8,3.24116194]
[1644604336261,14.3122,104.88,104.81,40.19730971]
[1644604336864,14.3122,104.88,104.81,40.44730971]
[1644604337061,13.65,104.89,104.81,40.44730971]
[1644604337062,13.65,104.89,104.82,6.0]
[1644604337261,13.65,104.89,104.83,35.61528601]
[1644604337463,13.65,104.89,104.82,6.0]
[1644604337861,47.7074,104.91,104.83,59.12366791]
[1644604337862,13.65,104.91,104.83,59.12366791]
[1644604338162,13.65,104.91,104.82,6.25]
[1644604338364,27.9585,104.91,104.83,37.12043239]
[1644604338862,27.9585,104.91,104.84,6.0]
[1644604339063,27.9585,104.91,104.85,44.88338432]
[1644604339263,27.9585,104.91,104.82,2.32585119]
[1644604339463,4.767,104.9,104.81,2.67016194]
[1644604339664,14.3139,104.88,104.8,3.24116194]
[1644604339864,4.769,104.87,104.8,0.571]
[1644604340265,27.9639,104.88,104.8,36.85673828]
[1644604340868,27.9639,104.88,104.8,0.571]
[1644604341265,30.34756791,104.88,104.8,0.571]
[1644604341465,4.769,104.87,104.8,0.571]
[1644604341670,14.3185,104.85,104.8,0.571]
[1644604341867,4.769,104.84,104.8,0.571]
[1644604342167,16.03366791,104.84,104.8,0.571]
[1644604342467,16.03366791,104.84,104.8,0.0001]
[1644604342667,13.65,104.84,104.8,0.0001]
[1644604342873,14.3214,104.83,104.8,0.0001]
[1644604343070,3.03219997,104.82,104.8,0.0001]
[1644604343472,1.37732212,104.81,104.8,0.0001]
[1644604343668,7.80219997,104.82,104.8,0.0001]
[1644604344070,13.65,104.81,104.8,0.0001]
[1644604344269,18.419,104.81,104.8,0.0001]
[1644604344470,17.35429997,104.82,104.8,0.0001]
[1644604345673,13.65,104.81,104.73,5.11988323]
[1644604345871,32.7446,104.81,104.75,0.024]
[1644604346079,27.9736,104.81,104.75,0.024]
[1644604347370,19.0913,104.83,104.76,2.38366791]
[1644604347572,18.421,104.83,104.77,0.024]
[1644604348774,14.3222,104.82,104.74,0.024]
[1644604349071,13.65,104.82,104.74,2.40766791]
[1644604349271,13.65,104.82,104.75,6.024]
[1644604349475,13.65,104.82,104.76,4.795]
[1644604349671,13.65,104.82,104.76,7.17866791]
[1644604349877,13.65,104.82,104.77,2.38366791]
[1644604350275,4.771,104.81,104.76,4.771]
[1644604350672,4.771,104.82,104.76,4.771]
[1644604350878,18.421,104.82,104.77,0.024]
[1644604351073,32.7429,104.82,104.75,0.024]
[1644604351275,27.9719,104.82,104.75,0.024]
[1644604352474,14.3244,104.8,104.75,0.024]
[1644604353973,27.9719,104.82,104.75,0.024]
[1644604354374,4.771,104.81,104.75,0.024]
[1644604354674,27.9719,104.82,104.75,0.024]
[1644604354675,18.421,104.82,104.75,0.024]
[1644604355877,14.3227,104.81,104.75,0.024]
[1644604356078,4.771,104.8,104.75,0.024]
[1644604356278,14.3227,104.81,104.75,0.024]
[1644604356477,14.3227,104.81,104.75,2.40766791]
[1644604356677,38.1325,104.83,104.76,35.69619893]
[1644604356878,38.1325,104.83,104.76,35.72019893]
[1644604357079,52.4523,104.83,104.76,0.024]
[1644604357279,4.771,104.82,104.74,0.024]
[1644604357479,18.421,104.82,104.77,0.024]
[1644604357778,18.421,104.82,104.74,0.024]
[1644604358783,14.3249,104.8,104.74,0.024]
[1644604358979,4.772,104.79,104.74,0.024]
[1644604359378,4.772,104.8,104.74,0.024]
[1644604360078,13.65,104.81,104.74,0.024]
[1644604360279,42.9045,104.83,104.74,49.93362124]
[1644604360480,42.9045,104.83,104.74,51.68144717]
[1644604360681,42.9045,104.83,104.75,0.024]
[1644604360881,38.1325,104.83,104.75,3.27933588]
[1644604361080,38.1325,104.83,104.76,0.024]
[1644604361482,14.3226,104.81,104.73,7.79304517]
[1644604361680,18.422,104.8,104.73,0.35088323]
[1644604361879,13.65,104.79,104.74,0.024]
[1644604362079,18.422,104.79,104.73,0.35088323]
[1644604362279,24.0,104.77,104.7,2.6982348]
[1644604362481,170.63,104.72,104.6,6.70238459]
[1644604362679,0.35088323,104.73,104.63,0.024]
[1644604362680,13.65,104.71,104.63,0.024]
[1644604362879,40.30184957,104.71,104.57,0.024]
[1644604363180,40.30184957,104.71,104.55,2.72532358]
[1644604363181,170.63,104.7,104.55,2.72532358]
[1644604363379,18.427,104.69,104.56,34.70558909]
[1644604363579,88.9544,104.69,104.57,56.74]
[1644604363779,88.9544,104.69,104.58,42.09044004]
[1644604363985,88.9544,104.69,104.58,78.35444004]
[1644604364181,88.9544,104.69,104.59,0.024]
[1644604364784,103.2985,104.69,104.59,0.024]
[1644604364982,31.0,104.68,104.58,77.35444004]
[1644604365183,18.427,104.67,104.58,77.35444004]
[1644604365382,13.65,104.67,104.58,77.35444004]
[1644604365583,4.777,104.66,104.58,20.61444004]
[1644604365781,13.65,104.65,104.58,20.61444004]
[1644604365982,27.9952,104.65,104.58,20.61444004]
[1644604366382,27.9952,104.65,104.55,56.74]
[1644604366383,30.37886791,104.65,104.46,235.9279]
[1644604366584,246.9152,104.64,104.47,2.68079304]
[1644604366784,13.65,104.63,104.46,56.74]
[1644604366982,4.782,104.62,104.46,56.74]
[1644604367182,13.65,104.61,104.46,56.74]
[1644604367484,28.0003,104.61,104.49,93.57115832]
[1644604367682,28.0003,104.61,104.49,36.83115832]
[1644604367683,4.782,104.6,104.49,36.83115832]
[1644604367882,18.432,104.6,104.5,6.0]
[1644604368182,18.432,104.6,104.51,38.01023003]
[1644604368384,13.65,104.6,104.51,38.01023003]
[1644604368688,13.65,104.6,104.53,40.95520081]
[1644604369082,13.65,104.6,104.55,41.46293401]
[1644604369284,13.65,104.6,104.55,41.65497934]
[1644604369483,13.65,104.62,104.55,41.65497934]
[1644604369682,13.65,104.62,104.56,6.0]
[1644604369883,13.65,104.64,104.57,47.70493666]
[1644604370381,13.65,104.64,104.57,47.95493666]
[1644604372683,13.65,104.64,104.57,104.69493666]
[1644604372884,13.65,104.64,104.57,47.95493666]
[1644604373486,13.65,104.64,104.57,47.70493666]
[1644604373890,4.779,104.63,104.57,47.70493666]
[1644604374088,13.65,104.62,104.57,47.70493666]
[1644604374288,13.65,104.62,104.51,56.74]
[1644604374493,13.65,104.62,104.52,4.781]
[1644604374690,13.65,104.62,104.52,5.031]
[1644604374889,18.431,104.62,104.52,5.031]
[1644604375090,18.431,104.62,104.53,6.0]
[1644604375292,18.431,104.62,104.54,41.74535387]
[1644604375691,18.431,104.62,104.55,6.0]
[1644604375890,18.431,104.62,104.56,42.70913076]
[1644604376290,32.7802,104.62,104.56,42.70913076]
[1644604377794,32.7802,104.62,104.51,61.52]
[1644604377995,32.7802,104.62,104.51,56.74]
[1644604378193,32.7802,104.62,104.51,56.99]
[1644604378393,32.7802,104.62,104.51,56.74]
[1644604378795,170.63,104.61,104.47,22.5765]
[1644604379097,14.3564,104.57,104.44,104.2121]
[1644604379294,18.434,104.56,104.45,113.0]
[1644604379695,18.434,104.56,104.4,145.0148636]
[1644604379894,173.01366791,104.55,104.43,48.15704532]
[1644604380099,203.4252,104.54,104.4,128.26496402]
[1644604380298,205.80886791,104.54,104.41,0.024]
[1644604380504,35.17886791,104.54,104.41,0.024]
[1644604380796,170.63,104.5,104.41,0.024]
[1644604380997,170.63,104.5,104.41,37.93243053]
[1644604380998,18.435,104.49,104.41,37.93243053]
[1644604381298,32.8078,104.49,104.41,37.43243053]
[1644604381501,32.8078,104.49,104.42,0.024]
[1644604382104,28.0228,104.49,104.39,0.024]
[1644604382306,4.787,104.48,104.39,0.024]
[1644604382506,28.021,104.47,104.39,0.024]
[1644604382706,28.021,104.47,104.39,39.05047964]
[1644604382908,28.021,104.47,104.4,0.024]
[1644604383106,4.787,104.46,104.4,6.024]
[1644604383308,13.65,104.45,104.41,45.24171222]
[1644604384510,28.0245,104.45,104.39,0.024]
[1644604384711,4.788,104.44,104.38,0.47883385]
[1644604384928,13.65,104.43,104.38,0.47883385]
[1644604385934,14.3734,104.46,104.4,41.60561956]
[1644604386134,18.439,104.45,104.4,41.60561956]
[1644604386441,18.439,104.45,104.4,41.62961956]
[1644604387237,13.65,104.45,104.4,41.62961956]
[1644604387534,13.65,104.45,104.4,41.60561956]
[1644604388435,18.438,104.45,104.4,41.60561956]
[1644604388638,32.8123,104.45,104.4,41.60561956]
[1644604388836,28.0243,104.45,104.4,41.60561956]
[1644604389037,13.65,104.45,104.4,41.60561956]
[1644604390036,13.65,104.45,104.42,1.90867335]
[1644604390238,3.03219997,104.44,104.43,40.17644757]
[1644604390538,13.65,104.47,104.43,40.17644757]
[1644604390941,13.65,104.47,104.43,7.31778757]
[1644604391139,28.0217,104.47,104.42,0.00867335]
[1644604391339,4.787,104.46,104.42,0.00867335]
[1644604391542,13.65,104.45,104.42,0.00867335]
[1644604391741,3.03219997,104.44,104.42,0.00867335]
[1644604392041,67.0,104.42,104.33,0.024]
[1644604392240,13.65,104.41,104.33,0.024]
[1644604392442,13.65,104.41,104.28,0.024]
[1644604392640,175.422,104.4,104.26,119.56496402]
[1644604392940,175.422,104.4,104.25,0.3]
[1644604392941,170.63,104.38,104.27,0.024]
[1644604393146,189.072,104.37,104.27,0.024]
[1644604393345,28.0403,104.36,104.27,0.024]
[1644604393544,3.793,104.35,104.27,0.024]
[1644604393745,13.65,104.34,104.27,0.024]
[1644604395047,4.793,104.33,104.27,0.024]
[1644604395246,13.65,104.32,104.25,0.324]
[1644604395644,0.4347964,104.28,104.25,0.324]
[1644604395846,0.4347964,104.28,104.26,3.03219997]
[1644604396072,0.4347964,104.28,104.27,44.23261413]
[1644604396446,18.445,104.33,104.27,44.23261413]
[1644604396650,13.65,104.33,104.27,44.23261413]
[1644604399249,4.793,104.37,104.27,46.86628204]
[1644604399448,13.65,104.39,104.29,56.74]
[1644604399648,4.793,104.4,104.31,56.74]
[1644604399649,18.443,104.4,104.31,56.74]
[1644604399947,4.792,104.38,104.32,45.54315382]
[1644604400154,13.65,104.4,104.32,108.28315382]
[1644604400358,4.791,104.39,104.32,115.64415382]
[1644604400549,38.3013,104.41,104.34,42.62510332]
[1644604401051,13.65,104.41,104.34,99.38910332]
[1644604401450,18.441,104.43,104.34,99.38910332]
[1644604401650,13.65,104.43,104.35,0.024]
[1644604402348,4.789,104.45,104.36,59.12366791]
[1644604402549,4.789,104.45,104.37,101.63140352]
[1644604403349,19.1616,104.46,104.37,101.63140352]
[1644604403549,4.788,104.44,104.37,101.63140352]
[1644604403751,4.789,104.45,104.37,44.89140352]
[1644604405254,13.65,104.45,104.37,101.88140352]
[1644604405453,4.788,104.49,104.37,101.88140352]